bitfinex/quotes_ETHUSD_20240715
["timestamp","ask_amount","ask_price","bid_price","bid_amount"]
[1721060423780,1.14543985,3379.5,3378.5,2.571]
[1721060424075,1.14543985,3379.5,3378.3,2.4001]
[1721060424441,0.92873501,3379.3,3378.3,2.4001]
[1721060424650,2.2724,3379.1,3378.3,2.4001]
[1721060424851,0.53428332,3379.2,3378.3,2.4001]
[1721060425142,0.92873501,3379.2,3378.3,2.4001]
[1721060425337,0.92873501,3378.9,3377.7,2.4001]
[1721060425570,0.92873501,3378.7,3377.7,2.4001]
[1721060425882,0.92873501,3378.5,3377.7,2.4001]
[1721060426096,0.92873501,3378.4,3377.7,2.4001]
[1721060426254,0.21670484,3378.3,3377.7,2.4001]
[1721060426455,0.21670484,3378.3,3377.3,2.4521]
[1721060426765,1.14543985,3378.3,3377.0,2.4001]
[1721060426969,0.92869448,3378.2,3377.0,2.4001]
[1721060427773,1.14539932,3378.3,3377.0,2.4001]
[1721060427973,0.92869448,3378.3,3377.1,0.24001]
[1721060428189,0.92869448,3378.3,3377.0,2.4001]
[1721060428388,0.92869448,3378.1,3377.0,2.4001]
[1721060428561,0.92869448,3378.0,3377.0,2.4001]
[1721060428767,0.92869448,3377.9,3377.0,2.4001]
[1721060429596,0.92869448,3378.2,3377.0,2.4001]
[1721060429802,0.92869448,3378.1,3377.1,0.24001]
[1721060429949,0.92869448,3378.1,3377.0,2.4001]
[1721060430602,0.15473733,3378.2,3377.1,0.55]
[1721060430802,1.08343181,3378.2,3377.1,0.55]
[1721060430953,0.15473733,3378.2,3377.1,0.55]
[1721060431294,0.92869448,3378.5,3377.2,0.05920976]
[1721060431511,2.9592,3379.3,3377.3,2.90630647]
[1721060431512,0.9277966,3378.8,3377.3,2.90630647]
[1721060431652,0.92771654,3378.9,3377.3,2.90630647]
[1721060431998,0.05432485,3378.8,3377.4,3.0]
[1721060432316,0.05432485,3378.8,3377.5,3.985]
[1721060432460,0.05432485,3378.8,3377.6,3.0]
[1721060432654,0.92771654,3379.1,3377.6,3.0]
[1721060432856,0.92771654,3379.2,3377.7,0.55]
[1721060433280,0.92771654,3379.1,3377.7,0.55]
[1721060433479,0.92771654,3379.2,3377.7,0.55]
[1721060433978,0.92771654,3379.4,3377.7,0.55]
[1721060434186,0.92771654,3379.3,3377.8,0.05919878]
[1721060434482,0.21670484,3379.5,3377.9,2.8291]
[1721060434483,1.14442138,3379.5,3377.9,2.8291]
[1721060434783,1.14442138,3379.5,3378.0,3.0]
[1721060434996,0.92771654,3379.4,3377.9,2.2791]
[1721060435169,0.05267398,3379.3,3377.9,2.2791]
[1721060435371,0.05267398,3379.3,3378.0,3.49419507]
[1721060435569,0.05267398,3379.3,3378.1,3.55]
[1721060435954,0.05267398,3379.3,3378.1,3.0]
[1721060436172,0.98039052,3379.3,3377.9,2.2791]
[1721060436365,0.98039052,3379.3,3377.9,5.2791]
[1721060436571,0.05267398,3379.3,3377.9,5.2791]
[1721060436758,0.05267398,3379.3,3378.0,0.05919524]
[1721060437303,0.05267398,3379.3,3378.0,3.49419524]
[1721060437604,0.05267398,3379.3,3378.1,3.55]
[1721060437760,0.9273151,3380.0,3378.1,3.55]
[1721060437964,1.23642013,3380.1,3378.1,3.55]
[1721060437965,0.05291297,3379.9,3378.1,3.55]
[1721060438605,0.98022807,3379.9,3378.1,3.55]
[1721060439075,0.05291297,3379.9,3378.2,2.52088588]
[1721060439274,0.22166482,3379.8,3378.3,3.55]
[1721060439483,0.22166482,3379.8,3378.4,3.0]
[1721060439689,0.05239577,3379.7,3378.4,3.0]
[1721060439885,0.05239577,3379.7,3378.3,3.55]
[1721060440900,0.05239577,3379.7,3378.3,3.60918584]
[1721060441194,0.05239577,3379.7,3378.4,0.66627442]
[1721060441599,0.05239577,3379.7,3378.5,3.985]
[1721060441802,0.05239577,3379.7,3378.6,3.05918041]
[1721060442009,3.55743105,3380.3,3378.8,2.3998]
[1721060442010,0.92739828,3380.2,3378.8,2.3998]
[1721060442208,0.05266797,3380.1,3379.0,3.435]
[1721060442412,0.92739828,3380.5,3379.1,0.37147444]
[1721060442564,0.05286879,3380.4,3379.1,3.3122994]
[1721060442904,0.05286879,3380.4,3379.2,0.05917317]
[1721060443228,1.23653105,3380.8,3379.2,0.55]
[1721060443229,0.92739828,3380.8,3379.2,0.55]
[1721060443541,0.05280185,3380.3,3379.2,0.55]
[1721060443687,0.92739828,3380.9,3379.4,2.3613]
[1721060443883,3.72533105,3381.0,3379.4,2.3613]
[1721060443884,0.05279541,3380.2,3379.5,0.05917138]
[1721060444088,3.41619828,3381.0,3379.5,0.05917138]
[1721060444329,0.92739828,3380.9,3379.5,0.05917138]
[1721060444529,0.05326392,3380.9,3379.5,0.05917138]
[1721060444700,0.47059933,3380.8,3379.4,2.3613]
[1721060444897,0.05326392,3380.9,3379.5,0.55]
[1721060445201,0.92739828,3381.0,3379.5,0.55]
[1721060445202,0.053197,3380.8,3379.5,3.55]
[1721060447101,0.053197,3380.8,3379.5,3.0]
[1721060447335,0.053197,3380.8,3379.4,5.3613]
[1721060448798,0.053197,3380.8,3379.7,2.574]
[1721060448995,0.053197,3380.8,3380.1,2.574]
[1721060449222,0.92739828,3381.7,3380.3,2.4219]
[1721060449534,0.05183726,3381.6,3380.3,2.4219]
[1721060449742,0.97923554,3381.6,3380.3,2.4219]
[1721060450443,0.05183726,3381.6,3380.3,2.4219]
[1721060450619,0.51727766,3381.5,3380.2,3.0]
[1721060450945,2.491,3381.3,3380.2,3.0]
[1721060451234,2.491,3381.3,3380.0,2.4001]
[1721060451235,3.00921161,3381.2,3380.0,2.4001]
[1721060451429,3.93660989,3381.2,3380.0,2.4001]
[1721060452417,3.00921161,3381.2,3380.0,2.4001]
[1721060452625,1.06216509,3381.1,3380.0,2.4001]
[1721060452929,0.05158398,3381.0,3380.0,2.4001]
[1721060456808,0.51727766,3381.5,3380.0,2.4001]
[1721060457041,0.05176288,3381.4,3380.0,2.4001]
[1721060457555,0.05176288,3381.4,3380.0,5.4001]
[1721060458935,0.05176288,3381.4,3380.1,0.55]
[1721060459136,0.05176288,3381.4,3380.1,3.0]
[1721060459339,5.4278,3381.8,3380.1,3.0]
[1721060459506,0.05171308,3381.3,3380.0,5.4001]
[1721060459707,5.4278,3381.8,3380.0,5.4001]
[1721060459945,0.05168199,3381.2,3380.0,5.4001]
[1721060460259,0.05137594,3381.1,3380.0,5.4001]
[1721060460615,2.95718,3381.6,3380.0,5.4001]
[1721060460813,5.46494357,3381.5,3380.0,2.4001]
[1721060461045,2.95755,3381.2,3380.0,2.4001]
[1721060461249,0.525285,3381.1,3380.0,2.4001]
[1721060461409,0.57665856,3381.1,3380.0,2.4001]
[1721060462665,5.2535,3380.5,3380.0,2.4001]
[1721060462873,2.2953,3380.5,3380.0,2.4001]
[1721060463198,0.92478287,3381.0,3380.0,2.4001]
[1721060463199,0.05122297,3380.4,3380.0,2.4001]
[1721060463345,5.3916,3381.0,3379.6,2.4001]
[1721060463699,1.23882886,3380.9,3379.6,2.4001]
[1721060463985,1.23882886,3380.9,3379.6,5.4001]
[1721060464195,0.05137836,3380.9,3379.6,5.4001]
[1721060464489,0.05137836,3380.9,3379.7,0.55]
[1721060464793,2.3426,3381.6,3379.8,3.49116228]
[1721060464960,2.3426,3381.6,3379.9,3.55]
[1721060464961,0.04981544,3381.5,3379.9,3.55]
[1721060465150,0.70405725,3381.5,3379.9,3.55]
[1721060466661,2.95751,3381.3,3379.9,3.0]
[1721060466848,3.66138725,3381.5,3379.6,5.4001]
[1721060467065,2.95735,3381.4,3379.6,5.4001]
[1721060467498,2.3603,3381.1,3379.6,5.4001]
[1721060467700,0.53665831,3381.0,3379.6,5.4001]
[1721060467906,0.5852107,3381.0,3379.6,5.4001]
[1721060468130,0.04855239,3381.0,3379.6,5.4001]
[1721060468273,0.04855239,3381.0,3379.7,0.55]
[1721060468468,0.04855239,3381.0,3379.7,3.55]
[1721060469715,2.3603,3381.1,3379.7,3.55]
[1721060470082,0.04685194,3381.0,3379.7,3.55]
[1721060470597,2.4359,3381.6,3379.7,3.0]
[1721060470803,5.3931,3381.6,3379.6,5.4001]
[1721060471184,2.95752,3381.3,3379.6,5.4001]
[1721060472213,0.65424181,3381.5,3379.6,5.4001]
[1721060472508,0.65424181,3381.5,3379.7,0.55]
[1721060472720,3.56211318,3381.4,3379.7,3.55]
[1721060473423,0.60473318,3381.4,3379.7,3.55]
[1721060473920,0.04707016,3381.3,3379.7,3.55]
[1721060474417,0.04707016,3381.3,3379.7,5.573]
[1721060475140,3.00451016,3381.3,3379.7,5.573]
[1721060475352,0.36092433,3381.2,3379.7,5.573]
[1721060475685,0.04693873,3381.1,3379.7,5.573]
[1721060476513,0.04693873,3381.1,3379.8,0.55]
[1721060476719,0.04693873,3381.1,3380.1,2.573]
[1721060476891,0.04693873,3381.1,3380.2,3.0]
[1721060477097,0.60473318,3381.4,3380.3,0.5573]
[1721060477943,0.92578264,3381.7,3380.6,2.3538]
[1721060478107,0.92578264,3382.2,3381.0,2.573]
[1721060478438,0.92578264,3382.1,3380.6,4.9268]
[1721060478597,0.92578264,3382.1,3380.7,3.0]
[1721060478797,0.92578264,3382.2,3380.7,3.0]
[1721060479130,0.80732495,3382.1,3380.7,3.0]
[1721060479324,1.73310759,3382.1,3380.7,3.0]
[1721060479511,0.80732495,3382.1,3380.7,3.0]
[1721060480145,0.92578264,3381.9,3380.7,3.0]
[1721060480320,0.92578264,3381.9,3380.6,2.3538]
[1721060480498,1.22253108,3381.8,3380.6,2.3538]
[1721060480902,2.39299682,3381.7,3380.4,3.0]
[1721060481132,2.39299682,3381.7,3380.3,2.4001]
[1721060481133,0.92578264,3381.4,3380.3,2.4001]
[1721060481435,0.96817882,3381.3,3380.3,2.4001]
[1721060481620,0.92578264,3381.2,3380.3,2.4001]
[1721060481820,0.55794848,3381.1,3380.3,2.4001]
[1721060482231,0.92578264,3380.9,3380.3,2.4001]
[1721060482432,0.04174266,3380.8,3379.7,2.4001]
[1721060482627,0.92578264,3381.1,3379.8,2.573]
[1721060482858,0.04166149,3381.0,3379.8,2.573]
[1721060483165,0.04166149,3381.0,3380.2,2.573]
[1721060483671,0.92578264,3381.4,3380.2,2.573]
[1721060483672,0.04153573,3380.9,3380.3,3.55]
[1721060483829,0.92578264,3381.4,3380.3,3.55]
[1721060484030,0.92578264,3381.5,3380.6,2.573]
[1721060484270,0.92578264,3381.8,3380.7,3.0]
[1721060484572,0.04226804,3381.7,3380.7,3.0]
[1721060485276,0.96805068,3381.7,3380.7,3.0]
[1721060485833,0.04226804,3381.7,3380.7,3.0]
[1721060486255,0.96805068,3381.7,3380.7,3.0]
[1721060487093,0.04226804,3381.7,3380.7,3.0]
[1721060487303,0.97170603,3381.7,3380.7,3.0]
[1721060487606,0.92943799,3381.6,3380.7,3.0]
[1721060488103,0.04215921,3381.5,3380.7,3.0]
[1721060488598,0.9715972,3381.5,3380.7,3.0]
[1721060488798,0.92943799,3381.4,3380.7,3.0]
[1721060488984,0.92943799,3381.4,3380.5,3.0]
[1721060489188,0.04204634,3381.3,3380.6,0.59501]
[1721060489499,0.92943799,3381.2,3380.5,3.0]
[1721060489693,0.92943799,3381.2,3380.4,2.4001]
[1721060489899,0.04190849,3381.1,3380.4,2.4001]
[1721060490069,0.97134648,3381.1,3380.3,3.0]
[1721060490494,0.04190849,3381.1,3380.3,3.0]
[1721060490810,0.97134648,3381.1,3380.4,0.5573]
[1721060490954,0.92943799,3381.2,3380.4,0.5573]
[1721060491159,0.04184157,3381.0,3380.3,3.0]
[1721060491460,0.04177465,3380.9,3380.3,3.0]
[1721060491658,0.04177465,3380.9,3380.6,2.573]
[1721060491854,0.92989986,3381.2,3380.7,3.0]
[1721060492103,0.04203024,3381.1,3380.8,0.5573]
[1721060492480,0.9298169,3381.4,3380.8,0.5573]
[1721060492681,0.04216728,3381.3,3380.9,0.05914978]
[1721060492977,0.9298169,3381.5,3380.9,0.05914978]
[1721060493294,0.04223418,3381.4,3380.8,0.5573]
[1721060493501,0.04223418,3381.4,3380.9,0.05914872]
[1721060493672,0.04223418,3381.4,3380.8,0.5573]
[1721060494316,0.04223418,3381.4,3381.0,2.573]
[1721060494720,0.9298169,3381.6,3381.0,2.573]
[1721060495011,1.23975587,3381.8,3381.0,2.573]
[1721060495012,0.042131,3381.3,3381.1,0.05914665]
[1721060495224,0.92968759,3381.7,3381.0,2.573]
[1721060495392,0.04206409,3381.2,3381.0,2.573]
[1721060495594,0.92968759,3381.7,3381.0,2.573]
[1721060495805,0.04199718,3381.1,3381.0,2.573]
[1721060496000,0.04199718,3381.1,3381.0,5.573]
[1721060496215,0.92968759,3381.7,3381.0,5.573]
[1721060496594,0.04233169,3381.6,3381.0,5.573]
[1721060496987,0.04233169,3381.6,3381.0,6.1303]
[1721060497424,0.92968759,3381.8,3381.0,6.1303]
[1721060497985,0.04241267,3381.7,3381.0,6.1303]
[1721060498879,0.04241267,3381.7,3381.1,3.0]
[1721060500518,0.92926413,3381.9,3381.1,3.0]
[1721060500689,0.04250688,3381.6,3381.1,3.36208798]
[1721060500891,0.92926413,3381.8,3381.1,3.36208798]
[1721060501091,0.04243999,3381.5,3381.1,3.0]
[1721060501391,0.92926413,3381.8,3380.6,4.9731]
[1721060501594,0.0423731,3381.4,3380.7,3.55]
[1721060501916,0.0423062,3381.3,3380.7,3.55]
[1721060502421,0.92926413,3381.8,3380.7,3.55]
[1721060502786,0.04230123,3381.7,3380.7,3.55]
[1721060503232,0.04230123,3381.7,3381.0,2.573]
[1721060503451,0.04230123,3381.7,3381.1,3.0]
[1721060504185,0.92926413,3381.9,3381.1,3.0]
[1721060504407,0.04223435,3381.6,3381.1,3.0]
[1721060504642,0.92926413,3381.9,3381.1,3.0]
[1721060504861,0.04216746,3381.5,3381.1,3.0]
[1721060505150,0.04210056,3381.4,3381.1,3.0]
[1721060505638,1.14609243,3381.9,3381.1,3.0]
[1721060505849,0.04203367,3381.3,3381.1,3.0]
[1721060506148,0.04196676,3381.2,3381.1,3.0]
[1721060506505,0.92926413,3381.9,3381.1,3.0]
[1721060506742,0.2168283,3381.8,3381.1,3.0]
[1721060506929,1.18846054,3381.8,3381.1,3.0]
[1721060507107,0.25919641,3381.8,3381.1,3.0]
[1721060507536,0.04236811,3381.8,3381.1,3.0]
[1721060508362,0.04236811,3381.8,3381.4,2.573]
[1721060508648,0.04236811,3381.8,3381.5,3.05913674]
[1721060508836,0.92926413,3382.4,3381.5,3.05913674]
[1721060509044,0.04230161,3381.7,3381.5,3.0]
[1721060509213,1.04855893,3382.5,3381.9,2.573]
[1721060509415,1.04855893,3382.5,3381.5,4.9731]
[1721060509753,0.92926413,3382.3,3381.6,3.0]
[1721060509956,0.92926413,3382.1,3381.6,3.0]
[1721060510166,1.14609243,3382.0,3381.5,2.4001]
[1721060510320,0.25943429,3382.0,3381.5,2.4001]
[1721060510632,0.92926413,3381.8,3381.5,2.4001]
[1721060510827,0.04240537,3381.7,3381.0,2.4001]
[1721060511247,0.04240537,3381.7,3380.9,3.0]
[1721060511417,0.97139516,3381.7,3380.8,3.0]
[1721060511621,0.22100482,3381.6,3380.6,2.4001]
[1721060511918,0.04203892,3381.5,3380.6,2.4001]
[1721060512119,0.04203892,3381.5,3380.8,2.573]
[1721060512333,0.04203892,3381.5,3380.9,3.0]
[1721060512549,0.92898979,3381.8,3380.9,3.0]
[1721060512749,0.04197526,3381.4,3381.0,0.5573]
[1721060512953,0.92898979,3382.0,3381.0,0.5573]
[1721060513155,0.92898979,3382.0,3380.9,3.0]
[1721060513341,0.97140688,3381.9,3380.9,3.0]
[1721060513874,0.92898979,3381.7,3380.9,3.0]
[1721060514178,0.97132467,3381.6,3380.9,3.0]
[1721060514531,0.04221644,3381.6,3380.9,3.0]
[1721060514873,0.92910823,3381.7,3380.9,3.0]
[1721060515164,0.04221644,3381.6,3380.9,3.0]
[1721060515862,0.97132467,3381.6,3380.8,2.573]
[1721060516173,0.04221644,3381.6,3380.9,3.0]
[1721060516474,0.92910823,3381.7,3380.9,3.0]
[1721060516633,0.04214955,3381.5,3380.9,3.0]
[1721060516829,0.04221644,3381.6,3380.9,3.0]
[1721060517163,0.04214955,3381.5,3380.9,3.0]
[1721060517871,0.04208266,3381.4,3380.9,3.0]
[1721060518276,0.92910823,3381.7,3380.9,3.0]
[1721060518589,0.92910823,3381.6,3380.9,3.0]
[1721060518736,0.04221644,3381.6,3380.9,3.0]
[1721060521833,0.92910823,3381.8,3380.9,3.0]
[1721060522166,0.92910823,3381.9,3381.2,2.573]
[1721060522388,0.04231912,3381.7,3381.2,2.573]
[1721060522692,0.92910823,3382.4,3381.6,2.573]
[1721060522908,1.04840303,3382.5,3382.0,2.573]
[1721060523193,0.1192948,3382.5,3382.1,2.2501]
[1721060523349,0.1192948,3382.5,3382.2,1.03231]
[1721060523546,0.1192948,3382.5,3382.2,4.03231]
[1721060524507,0.1192948,3382.5,3382.4,2.573]
[1721060524805,0.1192948,3382.5,3382.4,5.573]
[1721060524975,0.1192948,3382.5,3382.4,6.01007798]
[1721060526427,0.92910823,3384.2,3382.4,6.56007798]
[1721060526563,0.15409176,3384.1,3383.7,2.573]
[1721060526764,0.03794622,3384.1,3383.7,2.573]
[1721060527107,0.92910823,3384.5,3383.7,2.573]
[1721060527320,0.19246217,3384.4,3383.7,3.11440357]
[1721060527513,0.03667471,3384.4,3384.2,2.573]
[1721060527717,0.92910823,3385.6,3384.3,3.0]
[1721060528003,1.35810577,3385.8,3384.3,3.0]
[1721060528004,1.12504019,3385.5,3384.3,3.0]
[1721060528164,1.09039195,3385.4,3384.3,3.0]
[1721060528369,3.68047707,3385.3,3384.0,3.0]
[1721060528716,3.68047707,3385.3,3383.9,2.4001]
[1721060528717,1.09039195,3385.2,3383.9,5.4001]
[1721060528871,1.09039195,3385.2,3383.9,2.4001]
[1721060528872,0.19585226,3385.1,3383.9,2.4001]
[1721060529072,0.03456854,3385.1,3383.9,2.4001]
[1721060529580,2.59008512,3385.3,3383.9,2.4001]
[1721060529790,0.55438651,3385.2,3383.9,2.4001]
[1721060529999,0.03474529,3385.2,3384.0,0.55]
[1721060530305,0.03474529,3385.2,3384.0,3.55]
[1721060530511,0.03474529,3385.2,3384.0,3.0]
[1721060530683,0.03474529,3385.2,3383.9,2.4001]
[1721060531266,0.03474529,3385.2,3384.3,3.424]
[1721060531494,2.4639,3385.6,3384.4,3.3424]
[1721060531701,0.03381108,3385.5,3384.4,3.0]
[1721060532011,0.03381108,3385.5,3383.9,5.3043]
[1721060532207,0.03381108,3385.5,3384.0,0.55]
[1721060532516,0.03381108,3385.5,3384.0,3.55]
[1721060533085,2.4639,3385.6,3384.0,3.55]
[1721060533271,0.25831948,3385.5,3384.3,3.424]
[1721060533616,0.03374435,3385.4,3384.4,3.0]
[1721060533836,0.03374435,3385.4,3384.4,3.05908153]
[1721060534128,0.03374435,3385.4,3384.5,0.55]
[1721060534278,0.03374435,3385.4,3384.6,2.3019]
[1721060534636,0.1192948,3385.8,3385.3,3.424]
[1721060534908,0.1192948,3385.8,3385.4,3.60906162]
[1721060535428,0.1192948,3385.8,3385.4,3.55]
[1721060535591,2.4951,3387.6,3385.6,2.2691]
[1721060535785,0.050802,3387.8,3387.1,3.424]
[1721060536118,0.000802,3387.8,3387.1,3.424]
[1721060536470,0.000802,3387.8,3387.6,3.424]
[1721060536728,0.000802,3387.8,3387.7,0.05902606]
[1721060537010,0.000802,3387.8,3387.7,3.0]
[1721060537184,1e-08,3387.8,3387.7,3.0]
[1721060537621,1e-08,3387.8,3387.7,3.55]
[1721060537820,1e-08,3387.8,3387.7,3.0]
[1721060537975,1e-08,3387.8,3387.2,2.73]
[1721060538175,1e-08,3387.8,3387.1,2.4001]
[1721060538176,2.4545,3387.7,3387.1,2.4001]
[1721060538373,0.24545,3387.6,3387.1,2.4001]
[1721060538575,1e-08,3387.8,3387.2,0.05904401]
[1721060538819,1e-08,3387.8,3387.1,5.88313353]
[1721060538973,1e-08,3387.8,3387.1,2.4001]
[1721060539607,1e-08,3387.8,3387.0,3.0]
[1721060540938,2.4578,3387.7,3386.5,2.4001]
[1721060541135,3.492923,3387.6,3386.5,2.4001]
[1721060541429,3.492923,3387.6,3384.7,3.424]
[1721060541430,2.4578,3387.3,3385.8,2.4001]
[1721060541629,2.95256,3386.9,3385.5,2.4001]
[1721060542134,2.95326,3386.1,3384.1,2.85290624]
[1721060542301,2.95308,3386.3,3384.4,3.424]
[1721060542503,2.95283,3386.6,3384.9,3.424]
[1721060542710,2.4816,3386.7,3384.9,3.424]
[1721060544005,2.4816,3386.7,3385.0,0.55]
[1721060544202,2.4816,3386.7,3384.9,3.424]
[1721060544909,2.4816,3386.7,3384.5,0.3424]
[1721060545106,2.4816,3386.7,3384.4,3.424]
[1721060545107,2.953,3386.4,3384.4,3.424]
[1721060546122,2.953,3386.4,3384.5,0.55]
[1721060546293,2.953,3386.4,3384.5,3.55]
[1721060546613,2.4816,3386.7,3384.5,3.55]
[1721060547017,2.4816,3386.7,3384.6,0.05907145]
[1721060547205,0.843424,3386.6,3384.7,0.55]
[1721060547645,0.843424,3386.6,3384.6,0.55]
[1721060548103,0.843424,3386.6,3384.9,3.424]
[1721060548427,5.43433,3386.7,3385.0,3.0]
[1721060548636,2.95282,3386.6,3385.0,3.0]
[1721060548840,2.95282,3386.6,3384.6,0.55]
[1721060549208,2.4816,3386.7,3384.6,0.55]
[1721060549412,2.4816,3386.7,3384.7,0.05907164]
[1721060549716,2.72976,3386.7,3384.8,0.96997323]
[1721060550043,2.72976,3386.7,3384.9,0.55]
[1721060550241,5.68256,3386.7,3384.9,0.55]
[1721060550441,2.72976,3386.7,3384.9,0.55]
[1721060550603,2.9529,3386.6,3384.8,0.36090716]
[1721060550806,3.816431,3386.5,3384.8,0.36090716]
[1721060551042,2.95318,3386.2,3384.2,2.4001]
[1721060551201,2.95318,3386.2,3383.9,3.424]
[1721060551902,2.72976,3386.7,3384.9,3.424]
[1721060552412,2.72976,3386.7,3385.0,3.55]
[1721060553012,2.95289,3386.6,3385.0,3.0]
[1721060553311,4.12831,3386.5,3384.6,2.4001]
[1721060553500,2.95316,3386.2,3384.6,2.4001]
[1721060553702,2.95316,3386.2,3384.3,2.4001]
[1721060554241,2.95328,3386.1,3384.3,2.4001]
[1721060554539,2.95313,3386.3,3384.3,2.4001]
[1721060554724,3.661318,3386.2,3384.4,0.46809]
[1721060555045,2.95352,3385.8,3384.4,0.46809]
[1721060555243,2.95352,3385.8,3384.3,2.4001]
[1721060555447,2.9536,3385.7,3384.3,2.4001]
[1721060555740,5.9536,3385.7,3384.3,2.4001]
[1721060556313,2.95395,3385.3,3383.8,2.4001]
[1721060556706,5.95364,3385.7,3383.8,2.4001]
[1721060557032,4.186803,3385.6,3383.9,0.29910055]
[1721060557231,3.661368,3386.2,3383.9,2.62441]
[1721060557545,5.4299,3386.1,3383.9,2.62441]
[1721060557712,2.95341,3386.0,3383.9,2.62441]
[1721060558148,2.95341,3386.0,3384.0,3.0]
[1721060558319,2.95341,3386.0,3384.1,0.55]
[1721060558649,4.1578828,3385.9,3384.0,3.0]
[1721060558858,7.2758828,3385.9,3384.1,0.55]
[1721060559011,7.2758828,3385.9,3384.0,3.55]
[1721060559709,1.2044628,3385.9,3384.0,3.55]
[1721060560021,4.3224628,3385.9,3384.1,0.55]
[1721060560216,1.27057228,3385.8,3384.2,0.59344]
[1721060560531,1.27057228,3385.8,3384.3,0.55]
[1721060563851,4.38857228,3385.8,3384.2,0.59344]
[1721060564058,2.95364,3385.7,3384.2,0.59344]
[1721060564780,2.95364,3385.7,3384.0,3.0]
[1721060564781,3.118,3385.6,3384.0,3.0]
[1721060564973,6.07221,3385.0,3383.8,2.4001]
[1721060565266,6.07221,3385.0,3383.3,4.7348]
[1721060565267,6.07231,3384.9,3383.3,4.7348]
[1721060566142,2.95461,3384.6,3383.3,2.4001]
[1721060566329,3.118,3384.5,3383.3,2.4001]
[1721060566529,0.607261,3384.4,3383.3,2.4001]
[1721060567027,6.07239,3384.8,3383.3,2.4001]
[1721060567227,2.9545,3384.7,3383.3,2.4001]
[1721060567433,6.07258,3384.6,3383.3,2.4001]
[1721060567631,6.118,3384.6,3383.3,2.4001]
[1721060567831,3.0,3384.6,3383.3,2.4001]
[1721060568054,3.0,3384.7,3383.4,0.2991145]
[1721060568256,5.95426,3385.0,3383.4,0.24001]
[1721060568463,5.95426,3385.0,3383.3,2.4001]
[1721060568464,3.0,3385.0,3383.3,2.4001]
[1721060568670,2.95461,3384.6,3383.3,2.4001]
[1721060568864,3.118,3384.5,3383.3,2.4001]
[1721060569180,2.2802,3384.3,3383.3,2.4001]
[1721060569383,3.118,3384.2,3382.7,5.4516]
[1721060569581,6.07292,3384.2,3382.8,3.0]
[1721060569748,3.118,3384.2,3382.4,3.0]
[1721060569952,3.118,3384.2,3382.3,5.4001]
[1721060570165,4.3390475,3384.1,3382.4,0.30904671]
[1721060570487,4.3390475,3384.1,3382.4,3.0]
[1721060570648,4.3390475,3384.1,3382.3,2.4001]
[1721060570848,4.3390475,3384.1,3382.4,0.55]
[1721060571050,4.3390475,3384.1,3382.4,3.55]
[1721060571262,0.95741675,3384.0,3382.5,0.59501]
[1721060571457,1.2210475,3384.1,3382.6,0.55]
[1721060571699,2.2802,3384.3,3382.6,0.55]
[1721060571900,5.23509,3384.3,3382.5,0.59501]
[1721060572197,2.955,3384.1,3382.5,0.59501]
[1721060572695,2.2802,3384.3,3382.5,0.59501]
[1721060573099,2.95496,3384.2,3382.5,0.59501]
[1721060573403,1.118999,3384.1,3382.6,0.32437798]
[1721060573981,2.95509,3384.0,3382.6,0.32437798]
[1721060574303,2.95517,3383.9,3382.4,3.0]
[1721060574605,1.118999,3384.1,3382.3,2.4001]
[1721060574606,4.074029,3384.1,3382.3,2.4001]
[1721060574900,4.118999,3384.1,3382.3,2.4001]
[1721060575101,2.95514,3384.0,3382.3,2.4001]
[1721060575268,2.95517,3383.9,3382.3,2.4001]
[1721060575594,0.7074169,3383.8,3382.3,2.4001]
[1721060576979,3.6627269,3383.8,3382.3,2.4001]
[1721060577995,3.6627269,3383.8,3382.2,3.0]
[1721060578195,3.6627269,3383.8,3382.0,3.0]
[1721060579180,0.7074169,3383.8,3382.0,3.0]
[1721060579380,0.7074169,3383.8,3382.0,3.05912447]
[1721060579584,0.7074169,3383.8,3382.2,0.55]
[1721060579789,4.118999,3384.1,3382.3,0.0591203]
[1721060579983,3.0,3384.0,3382.4,0.55]
[1721060580194,2.95509,3384.0,3382.2,3.0]
[1721060580401,1.118999,3384.1,3382.2,3.0]
[1721060580402,2.3206,3383.7,3382.2,3.0]
[1721060580602,2.3206,3383.7,3381.9,2.4001]
[1721060580603,2.95544,3383.6,3381.9,2.4001]
[1721060580805,1.134929,3383.5,3382.0,0.54001]
[1721060581109,1.134929,3383.5,3382.0,3.54001]
[1721060584307,3.0,3383.6,3382.1,2.2837]
[1721060584626,3.0,3383.9,3382.1,5.2837]
[1721060585675,3.0,3383.9,3382.1,5.34282204]
[1721060585990,4.073989,3384.1,3382.1,5.2837]
[1721060586205,3.0,3384.0,3382.1,5.2837]
[1721060586392,1.118999,3384.1,3382.2,0.43849448]
[1721060586587,3.0,3384.3,3382.3,0.05911445]
[1721060586831,2.3794,3384.4,3382.2,3.37937798]
[1721060587113,2.3794,3384.4,3382.3,0.60910981]
[1721060587288,2.3794,3384.4,3382.3,0.55]
[1721060587895,2.95488,3384.3,3382.2,3.37937798]
[1721060588221,1.140693,3384.2,3382.3,0.54001]
[1721060588429,4.095613,3384.2,3382.3,0.54001]
[1721060589217,2.95499,3384.1,3382.3,0.54001]
[1721060589621,1.140693,3384.2,3382.3,0.54001]
[1721060590040,1.140693,3384.2,3382.4,0.05911643]
[1721060590251,1.140693,3384.2,3382.5,0.35991264]
[1721060590549,3.0,3384.3,3382.6,2.3404]
[1721060590700,2.3794,3384.4,3382.6,5.3404]
[1721060590701,8.33413,3384.4,3382.6,5.3404]
[1721060590904,5.33413,3384.4,3382.6,5.3404]